{"text_format":"3","workbook":"xlsx","n_sheets":1,"sheets":["Unit_Price_Tab"],"not_rendered":{"external_links":1,"defined_names":7},"read":"whole","date_system":"1900"}

{"sheet":"Unit_Price_Tab","index":0,"n_rows":77,"n_cols":6,"rows_kept":77,"merged":[[1,0,1,5]]}
[]
["THE UNDERSIGNED CERTIFIES THAT (CONTRACTOR NAME)___________________________\nIS CURRENTLY REGISTERED WITH THE VIRGINIA STATE BOARD OF CONTRACTORS AS REQUIRED BY THE CODE OF VIRGINIA.  CERTIFICATE NUMBER _________________ WAS ISSUED ON THE ________DAY OF _____________, 20XX.  THE UNDERSIGNED FURTHER CERTIFIES THAT THE REGISTRATION FEE AND ALL RENEWAL FEES REQUIRED UNDER LAW HAVE BEEN PAID.  THE CONTRACTOR AGREES TO FURNISH ALL NECESSARY LABOR, EQUIPMENT, MATERIALS, AND ALL THINGS NECESSARY TO PERFORM THE WORK AS SET FORTH IN ACCORDANCE WITH THE PLANS AND SPECIFICATIONS. THE CONTRACTOR AGREES TO PERFORM RELATED WORK FOR THE FOLLOWING ITEMS AT THE FOLLOWING STIPULATED PRICES: (ALL PRICES INCLUDE PROVISION AND INSTALLATION)."]
[]
[]
["MASTER ITEM #","DESCRIPTION","QTY","UNIT","UNIT PRICE","TOTAL"]
["C1","GENERAL EARTHWORK"]
["MASTER ITEM #","DESCRIPTION","QTY","UNIT","UNIT PRICE","TOTAL"]
["02200-C1-00010","General Excavation, only when not included in other pay items",25,"CY",null,{"$f":"IFERROR($C8*$E8, \"\")","v":{"v":0,"d":"$0.00"}}]
["02200-C1-00050","Select Borrow (VDOT Section 207 - Select Material, Type I)",5,"CY",null,{"v":0,"d":"$0.00"}]
["02200-C1-00130","Aggregate, VDOT #21-A  (Compacted in Place per VDOT standards & Specs)",20,"CY",null,{"v":0,"d":"$0.00"}]
[{"$nulls":4},"SUBTOTAL",{"$f":"SUBTOTAL(109,Unit_Price_Tab!$F$8:$F$10)","v":{"v":0,"d":"$0.00"}}]
[]
["C2","CONCRETE WORK"]
["MASTER ITEM #","DESCRIPTION","QTY","UNIT","UNIT PRICE","TOTAL"]
["02750-C2-00020","Concrete Curb, Standard Header Curb C-3 (Arlington County Detail R-2.0), includes curb for aprons, ramps, etc.",30,"LF",null,{"$f":"IFERROR($C15*$E15, \"\")","v":{"v":0,"d":"$0.00"}}]
["02750-C2-00060","Concrete Curb & Gutter, Standard C-2 and C-2R (Arlington County Detail R-2.0), includes curb & gutter for aprons, ramps, etc.",600,"LF",null,{"v":0,"d":"$0.00"}]
["02611-C2-00110","Concrete Sidewalk, 4\" Thickness (Arlington County Detail R-2.0)",400,"SY",null,{"v":0,"d":"$0.00"}]
["02611-C2-00190","CG-12 Detectable Warning Surface - Truncated Domes",10,"SY",null,{"v":0,"d":"$0.00"}]
[{"$nulls":4},"SUBTOTAL",{"$f":"SUBTOTAL(109,Unit_Price_Tab!$F$15:$F$18)","v":{"v":0,"d":"$0.00"}}]
[]
["C3","ASPHALT WORK"]
["MASTER ITEM #","DESCRIPTION","QTY","UNIT","UNIT\nPRICE","TOTAL"]
["02600-C3-00010","Asphalt Concrete, Planing or Milling (1/2\" to 3\" Depth)",125,"SY",null,{"$f":"IFERROR($C23*$E23, \"\")","v":{"v":0,"d":"$0.00"}}]
["02600-C3-00030","Asphalt Concrete, Base Course (VDOT BM-25.0A)",60,"TON",null,{"v":0,"d":"$0.00"}]
["02600-C3-00060","Asphalt Concrete, Surface Course (VDOT SM-9.5A)",15,"TON",null,{"v":0,"d":"$0.00"}]
[{"$nulls":4},"SUBTOTAL",{"$f":"SUBTOTAL(109,Unit_Price_Tab!$F$23:$F$25)","v":{"v":0,"d":"$0.00"}}]
[]
["C4","STORM SEWER UTILITY WORK"]
["MASTER ITEM #","DESCRIPTION","QTY","UNIT","UNIT\nPRICE","TOTAL"]
["02500-C4-00620","15\" Pipe, RCP Class III, In Place Up to 6' Deep",20,"LF",null,{"$f":"IFERROR($C30*$E30, \"\")","v":{"v":0,"d":"$0.00"}}]
["02500-C4-00820","15\" Pipe, RCP Class IV, In Place Up to 6' Deep",10,"LF",null,{"v":0,"d":"$0.00"}]
["02505-C4-00100","CB-2A or CB-2B (throat lengths from 8'-6\" up to 16'-0\"),  In Place Up to 6' Deep, Arlington County Standards.",2,"EA",null,{"v":0,"d":"$0.00"}]
["02505-C4-00470","Catch Basin Structure Top, Remove & Replace",2,"EA",null,{"v":0,"d":"$0.00"}]
["02505-C4-00520","Convert Catch Basin to Manhole",2,"EA",null,{"v":0,"d":"$0.00"}]
[{"$nulls":4},"SUBTOTAL",{"$f":"SUBTOTAL(109,Unit_Price_Tab!$F$30:$F$34)","v":{"v":0,"d":"$0.00"}}]
[]
["C6","WATERMAIN WORK"]
["MASTER ITEM #","DESCRIPTION","QTY","UNIT","UNIT\nPRICE","TOTAL"]
["02550-C6-00190","Connect To Existing 12-Inch Water Main",1,"EA",null,{"$f":"IFERROR($C39*$E39, \"\")","v":{"v":0,"d":"$0.00"}}]
["02550-C6-00250","Remove Existing Fire Hydrant",1,"EA",null,{"v":0,"d":"$0.00"}]
["02550-C6-00270","Install New Fire Hydrant (includes Fire Hydrant, Gate Valve with Valve Box and up to 20 LF 6-inch DIP CL-52)",1,"EA",null,{"v":0,"d":"$0.00"}]
["02550-C6-00300","Cut & Cap 12-Inch Water Main",1,"EA",null,{"v":0,"d":"$0.00"}]
["02550-C6-00080","6-Inch Water Main, DIP CL-52, > 6' Deep",20,"LF",null,{"v":0,"d":"$0.00"}]
[{"$nulls":4},"SUBTOTAL",{"$f":"SUBTOTAL(109,Unit_Price_Tab!$F$39:$F$43)","v":{"v":0,"d":"$0.00"}}]
[]
["C8","TRAFFIC SIGNAL WORK"]
["MASTER ITEM #","DESCRIPTION","QTY","UNIT","UNIT\nPRICE","TOTAL"]
["13160-C8-03000","Traffic Signal Upgrade of S. Carlin Springs Rd. & 6th Rd. S. as outlined in Construction Plans",1,"LS",null,{"$f":"IFERROR($C48*$E48, \"\")","v":{"v":0,"d":"$0.00"}}]
[{"$nulls":4},"SUBTOTAL",{"$f":"SUBTOTAL(109,Unit_Price_Tab!$F$48:$F$48)","v":{"v":0,"d":"$0.00"}}]
[]
["C10","PAVEMENT MARKING AND SIGNAGE WORK"]
["MASTER ITEM #","DESCRIPTION","QTY","UNIT","UNIT\nPRICE","TOTAL"]
["02900-C10-00040","Eighteen (18) Inch Transverse Markings",120,"LF",null,{"$f":"IFERROR($C53*$E53, \"\")","v":{"v":0,"d":"$0.00"}}]
["02900-C10-00050","Twenty Four (24) Inch Transverse Markings, Note: Used For Continental (Ladder) Crosswalk",220,"LF",null,{"v":0,"d":"$0.00"}]
["02900-C10-00070","Four (4) Inch Longitudinal Solid Line",150,"LF",null,{"v":0,"d":"$0.00"}]
["02900-C10-00080","Four (4) Inch Longitudinal Skip Line (Ten (10) Foot Line/Thirty (30) Foot Spacing), Note: Forty (40) LF Consists of Ten (10) LF of Marking and Thirty (30) LF of Space",200,"LF",null,{"v":0,"d":"$0.00"}]
["02900-C10-00120","Six (6) Inch Longitudinal Solid Line",40,"LF",null,{"v":0,"d":"$0.00"}]
["02900-C10-00170","Twelve (12) Inch Yellow Longitudinal Centerline, Two - Four (4) Inch Yellow Lines with Four (4) Inch Separation",110,"LF",null,{"v":0,"d":"$0.00"}]
["02900-C10-00240","Single Arrows",1,"EA",null,{"v":0,"d":"$0.00"}]
["02900-C10-00250","Combination Arrows",1,"EA",null,{"v":0,"d":"$0.00"}]
["02619-C10-00420","Traffic Control Sign (Typical Stop, Yield, No Parking, Speed Limit, or Similar), Relocate with Existing Post",2,"EA",null,{"v":0,"d":"$0.00"}]
[{"$nulls":4},"SUBTOTAL",{"$f":"SUBTOTAL(109,Unit_Price_Tab!$F$53:$F$61)","v":{"v":0,"d":"$0.00"}}]
[]
["C11","LANDSCAPE & HARDSCAPE RESTORATION WORK"]
["MASTER ITEM #","DESCRIPTION","QTY","UNIT","UNIT\nPRICE","TOTAL"]
["02200-C11-00010","Imported Topsoil",40,"CY",null,{"$f":"IFERROR($C66*$E66, \"\")","v":{"v":0,"d":"$0.00"}}]
["02801-C11-00070","Sod, Zoysia",360,"SY",null,{"v":0,"d":"$0.00"}]
["02800-C11-00200","Chain Link Fence, Height Less Than or Equal to 6'",140,"LF",null,{"v":0,"d":"$0.00"}]
[{"$nulls":4},"SUBTOTAL",{"$f":"SUBTOTAL(109,Unit_Price_Tab!$F$66:$F$68)","v":{"v":0,"d":"$0.00"}}]
["C16","E&SC, MOT & MOBILIZATION WORK"]
["MASTER ITEM #","DESCRIPTION","QTY","UNIT","UNIT\nPRICE","TOTAL"]
[null,"Temporary Erosion and Sediment Controls (E&SC)",1,"LS",null,{"$f":"E72","v":{"v":0,"d":"$0.00"}}]
[null,"Maintenance of Traffic (MOT)",1,"LS",null,{"$f":"E73","v":{"v":0,"d":"$0.00"}}]
[null,"Mobilization and De-Mobilization",1,"LS",null,{"$f":"E74","v":{"v":0,"d":"$0.00"}}]
[{"$nulls":4},"SUBTOTAL",{"$f":"SUBTOTAL(109,Unit_Price_Tab!$F$72:$F$74)","v":{"v":0,"d":"$0.00"}}]
[]
[{"$nulls":4},"CONTRACT TOTAL:",{"$f":"SUM(F75,F69,F62,F49,F44,F35,F26,F19,F11)","v":{"v":0,"d":"$0.00"}}]